bitfinex/quotes_SOLUSD_20220117
["timestamp","ask_amount","ask_price","bid_price","bid_amount"]
[1642458082681,55.23466095,138.08,137.96,108.6453]
[1642458082881,55.23466095,138.08,137.97,0.25]
[1642458083280,10.867,138.06,137.98,10.8676]
[1642458083481,10.867,138.06,137.98,83.2876]
[1642458083684,8.26960625,138.07,137.99,0.25]
[1642458084484,56.04117628,138.1,138.0,72.42]
[1642458084683,56.04117628,138.1,137.99,41.18907598]
[1642458084887,56.04117628,138.1,137.99,119.86907598]
[1642458085284,62.04117628,138.1,137.99,119.86907598]
[1642458085690,10.8654,138.08,138.01,10.8662]
[1642458085888,10.8654,138.08,138.01,11.1262]
[1642458086088,11.1254,138.08,138.01,11.1262]
[1642458088289,17.1254,138.08,138.01,11.1262]
[1642458089318,0.25,138.07,138.01,11.1262]
[1642458090594,17.1254,138.08,138.01,11.1262]
[1642458091297,17.1254,138.08,138.02,0.25]
[1642458091900,17.1254,138.08,138.02,11.1154]
[1642458094302,17.1254,138.08,138.02,10.8654]
[1642458094705,11.1166,138.07,138.01,10.8663]
[1642458094903,11.3766,138.07,137.97,72.42]
[1642458095302,11.3766,138.07,137.97,78.42]
[1642458095803,11.3766,138.07,137.97,115.93904821]
[1642458096006,11.3766,138.07,137.98,0.25]
[1642458096605,11.3766,138.07,137.99,10.8676]
[1642458097626,11.1166,138.07,137.99,10.8676]
[1642458097829,11.1166,138.07,138.0,72.42]
[1642458098029,10.8655,138.08,137.99,11.1276]
[1642458098327,0.25,138.07,137.99,16.8676]
[1642458098527,0.25,138.07,137.99,10.8676]
[1642458098730,0.25,138.07,138.0,0.25]
[1642458098927,0.25,138.07,137.99,0.25]
[1642458099128,11.1159,138.07,137.99,0.25]
[1642458099427,17.3759,138.07,137.99,0.25]
[1642458100429,17.3759,138.07,138.0,10.8672]
[1642458100629,0.9400774,138.06,138.0,10.8672]
[1642458100831,0.9400774,138.06,138.01,0.25]
[1642458102529,0.9400774,138.06,138.03,34.97545503]
[1642458102730,0.9400774,138.06,138.04,6.06439994]
[1642458103733,6.51,138.08,138.04,6.06439994]
[1642458103931,0.9400774,138.07,138.04,6.06439994]
[1642458106435,2.7608399,138.09,138.04,6.06439994]
[1642458106639,2.7608399,138.09,138.05,0.25]
[1642458106839,7.30726095,138.17,138.05,0.25]
[1642458107041,7.30726095,138.17,138.05,72.67]
[1642458107248,7.30726095,138.17,138.05,0.25]
[1642458107439,2.4253789,138.19,138.05,6.51]
[1642458107640,10.859,138.16,138.06,120.8708]
[1642458107939,16.859,138.16,138.07,47.12357711]
[1642458108339,0.25,138.15,138.08,0.25]
[1642458108741,14.869,138.16,138.09,10.8591]
[1642458108939,0.25,138.15,138.09,10.8591]
[1642458109141,0.25,138.15,138.1,0.25]
[1642458109340,0.25,138.15,138.08,30.9269]
[1642458109540,11.1097,138.15,138.08,30.9269]
[1642458109741,0.25,138.15,138.1,10.8595]
[1642458110140,24.14186571,138.18,138.1,52.71196782]
[1642458110341,0.25,138.17,138.1,52.71196782]
[1642458110542,0.25,138.17,138.1,10.8595]
[1642458111142,0.25,138.17,138.11,0.25]
[1642458111345,10.8594,138.16,138.11,11.1086]
[1642458111543,0.25,138.17,138.11,11.1086]
[1642458111743,38.6238789,138.19,138.12,47.40412467]
[1642458112244,8.24793076,138.18,138.12,47.40412467]
[1642458112646,8.24793076,138.18,138.11,0.25]
[1642458112847,10.8583,138.17,138.11,11.109]
[1642458113248,11.1183,138.17,138.11,11.109]
[1642458114249,2.06452244,138.12,138.11,11.109]
[1642458114449,2.06452244,138.12,138.11,64.65360693]
[1642458115450,10.8583,138.17,138.11,64.65360693]
[1642458115879,11.1183,138.17,138.11,64.65360693]
[1642458116082,10.8575,138.18,138.11,64.91360693]
[1642458116278,10.8575,138.18,138.11,70.91360693]
[1642458116880,10.68346868,138.19,138.11,70.91360693]
[1642458117280,2.06484312,138.12,138.11,143.33360693]
[1642458118480,2.06484312,138.12,138.11,70.91360693]
[1642458118883,2.4253789,138.19,138.11,95.85339994]
[1642458119086,2.4253789,138.19,138.11,104.55339994]
[1642458119281,2.4253789,138.19,138.11,106.18363904]
[1642458119883,2.4253789,138.19,138.12,42.63267581]
[1642458120085,2.4253789,138.19,138.16,38.37249185]
[1642458120384,2.4253789,138.19,138.17,6.31439994]
[1642458121181,8.25808978,138.24,138.17,6.31439994]
[1642458121383,6.26,138.24,138.17,6.31439994]
[1642458121587,10.8534,138.23,138.18,10.8534]
[1642458121781,17.1134,138.23,138.19,0.25]
[1642458123684,17.1134,138.23,138.18,10.8534]
[1642458123885,17.1134,138.23,138.13,59.3883]
[1642458124089,17.1134,138.23,138.13,23.2073]
[1642458124286,17.1134,138.23,138.13,29.2073]
[1642458124786,10.8554,138.21,138.14,35.36166674]
[1642458124987,10.8554,138.21,138.15,10.8553]
[1642458125189,11.1154,138.21,138.15,10.8553]
[1642458126691,4.13024552,138.18,138.15,10.8553]
[1642458126888,4.39024552,138.18,138.16,6.06439994]
[1642458127088,4.39024552,138.18,138.16,6.31439994]
[1642458127488,4.13024552,138.17,138.16,6.31439994]
[1642458128289,4.39024552,138.18,138.16,6.31439994]
[1642458128490,4.13024552,138.18,138.16,6.31439994]
[1642458129194,4.13024552,138.18,138.16,6.06439994]
[1642458129891,4.13024552,138.18,138.16,16.91889994]
[1642458130793,4.13024552,138.18,138.17,0.25]
[1642458131896,4.13024552,138.18,138.16,16.91889994]
[1642458132394,4.13024552,138.19,138.16,16.91889994]
[1642458133195,4.13024552,138.18,138.16,16.91889994]
[1642458135201,4.39024552,138.18,138.16,6.06439994]
[1642458135499,4.39024552,138.18,138.15,10.855]
[1642458135904,4.39024552,138.18,138.13,23.2073]
[1642458136102,4.39024552,138.18,138.13,58.45598423]
[1642458136301,4.39024552,138.18,138.14,10.8556]
[1642458136501,0.26,138.18,138.14,10.8556]
[1642458136907,4.39024552,138.19,138.15,0.25]
[1642458137102,4.39024552,138.19,138.14,10.8556]
[1642458137704,4.39024552,138.19,138.13,69.31238423]
[1642458138005,15.24664552,138.19,138.13,69.31238423]
[1642458138207,21.24664552,138.19,138.13,69.31238423]
[1642458138506,21.24664552,138.19,138.13,58.45598423]
[1642458138906,15.24664552,138.19,138.13,58.45598423]
[1642458139811,21.24664552,138.19,138.13,58.45598423]
[1642458140608,21.24664552,138.19,138.14,0.25]
[1642458142227,15.24664552,138.19,138.14,0.25]
[1642458143129,4.39024552,138.19,138.14,0.25]
[1642458143328,4.39024552,138.19,138.14,11.1055]
[1642458143528,2.2875244,138.17,138.14,11.1055]
[1642458143731,2.2875244,138.17,138.15,6.06439994]
[1642458144129,2.2875244,138.17,138.16,0.25]
[1642458145631,2.2875244,138.17,138.15,6.06439994]
[1642458146230,2.5475244,138.17,138.14,10.8552]
[1642458147131,2.5475244,138.17,138.15,3.03219997]
[1642458147331,2.5475244,138.17,138.14,10.8552]
[1642458147534,2.5475244,138.17,138.15,3.03219997]
[1642458147930,2.2875244,138.17,138.15,3.03219997]
[1642458148133,2.2875244,138.17,138.15,13.88719997]
[1642458148333,2.2875244,138.17,138.16,3.28219997]
[1642458149034,2.2875244,138.17,138.16,14.13609997]
[1642458150736,2.2875244,138.17,138.16,54.55231057]
[1642458151440,2.2875244,138.17,138.16,14.13609997]
[1642458151639,2.2875244,138.17,138.16,3.28219997]
[1642458152038,2.2875244,138.17,138.16,0.25]
[1642458152239,2.2875244,138.17,138.16,3.28219997]
[1642458155843,2.2875244,138.17,138.16,0.25]
[1642458156045,2.2875244,138.17,138.16,3.28219997]
[1642458157145,2.2875244,138.17,138.16,14.13589997]
[1642458157945,2.2875244,138.17,138.16,3.03219997]
[1642458158146,2.5475244,138.17,138.15,3.03219997]
[1642458158347,2.5475244,138.17,138.08,23.8889]
[1642458158546,8.5475244,138.17,138.08,23.8889]
[1642458158745,2.5475244,138.17,138.08,23.8889]
[1642458158946,8.5475244,138.17,138.09,43.73173437]
[1642458159146,2.5475244,138.17,138.1,10.8563]
[1642458159548,8.5475244,138.17,138.11,0.25]
[1642458159748,2.5475244,138.17,138.1,0.25]
[1642458159948,2.2875244,138.17,138.1,0.25]
[1642458160148,2.2875244,138.17,138.12,83.2759]
[1642458160351,2.2875244,138.17,138.13,0.25]
[1642458160752,2.2875244,138.17,138.13,35.68237828]
[1642458161151,2.2875244,138.17,138.14,10.8531]
[1642458161351,2.2875244,138.17,138.15,6.31439994]
[1642458161556,2.2875244,138.17,138.16,48.64842044]
[1642458161752,2.2875244,138.17,138.16,48.89842044]
[1642458162051,2.2875244,138.17,138.16,48.64842044]
[1642458162252,2.2875244,138.17,138.16,48.89842044]
[1642458162649,2.5475244,138.17,138.16,48.89842044]
[1642458162854,2.5475244,138.17,138.16,48.64842044]
[1642458163952,2.5475244,138.17,138.15,6.06439994]
[1642458164154,2.5475244,138.17,138.15,3.03219997]
[1642458164355,2.5475244,138.17,138.08,24.8198]
[1642458164555,8.5475244,138.17,138.08,25.0698]
[1642458164755,8.5475244,138.17,138.08,24.8198]
[1642458164956,8.5475244,138.17,138.09,39.28608526]
[1642458165358,13.4059244,138.17,138.09,39.28608526]
[1642458166658,13.4059244,138.17,138.09,50.14418526]
[1642458166857,17.53616992,138.17,138.09,50.14418526]
[1642458167259,17.53616992,138.17,138.1,0.25]
[1642458167658,6.67776992,138.17,138.1,10.8576]
[1642458167861,0.25,138.16,138.1,10.8576]
[1642458168085,6.67776992,138.17,138.1,10.8576]
[1642458168458,12.67776992,138.17,138.1,10.8576]
[1642458168658,6.67776992,138.17,138.1,10.8576]
[1642458168858,17.53576992,138.17,138.09,50.14468526]
[1642458169060,23.53576992,138.17,138.09,50.14468526]
[1642458169862,0.25,138.16,138.09,50.14468526]
[1642458170062,19.3702361,138.16,138.1,0.25]
[1642458170260,19.6302361,138.16,138.1,0.25]
[1642458170867,19.6302361,138.16,138.09,0.25]
[1642458171267,15.49924552,138.16,138.09,0.25]
[1642458171471,5.10669336,138.15,138.09,0.25]
[1642458171767,0.26,138.15,138.09,0.25]
[1642458172469,15.24924552,138.16,138.09,11.1086]
[1642458172769,15.24924552,138.16,138.09,0.25]
[1642458172973,23.94924552,138.16,138.09,0.25]
[1642458173170,29.94924552,138.16,138.09,0.25]
[1642458174670,29.94924552,138.16,138.05,60.7733]
[1642458174871,2.00619958,138.15,138.03,22.9165]
[1642458175072,10.8634,138.12,138.03,22.9165]
[1642458175271,11.1234,138.12,138.03,22.9165]
[1642458175793,0.25,138.11,138.04,46.5646711]
[1642458176196,10.8648,138.09,138.03,22.9165]
[1642458176394,0.25,138.08,138.0,23.7985]
[1642458176594,0.25,138.08,138.0,34.73]
[1642458176896,0.26,138.09,138.0,34.73]
[1642458177095,0.25,138.09,138.01,41.77621789]
[1642458177596,10.8662,138.07,138.01,41.77621789]
[1642458177796,11.1262,138.07,138.01,41.77621789]
[1642458177997,11.1262,138.07,138.0,23.7985]
[1642458178199,0.25,138.06,138.0,23.7985]
[1642458178399,0.26,138.07,138.0,23.7985]
[1642458178597,0.25,138.08,138.0,23.7985]
[1642458178796,10.8677,138.05,138.0,23.7985]
[1642458178996,10.8677,138.05,137.99,22.5031]
[1642458179197,10.8677,138.05,137.98,44.51541129]
[1642458179198,17.8377,138.05,137.98,44.51541129]
[1642458179397,17.8377,138.05,137.96,10.8691]
[1642458179896,17.8377,138.05,137.95,48.1327]
[1642458180097,17.8377,138.05,137.95,51.91521946]
[1642458180495,17.8377,138.05,137.96,36.25833329]
[1642458181097,11.1277,138.05,137.96,36.25833329]
[1642458181297,10.8677,138.05,137.96,36.51833329]
[1642458182198,10.8677,138.05,137.97,0.25]
[1642458182400,16.8677,138.05,137.97,10.8686]
[1642458182601,0.25,138.04,137.95,48.1327]
[1642458182899,10.8717,138.02,137.95,48.1327]
[1642458183107,72.42,138.01,137.92,3.39122529]
[1642458183299,80.349,138.01,137.92,3.39122529]
[1642458183502,102.90721285,138.01,137.92,46.42860387]
[1642458183699,0.25,138.0,137.92,46.42860387]
[1642458183902,10.8738,137.99,137.92,46.42860387]
[1642458184300,11.1338,137.99,137.92,43.03737858]
[1642458185701,11.1338,137.99,137.9,23.9606]
[1642458185902,11.1338,137.99,137.9,34.8346]
[1642458186303,0.26,137.99,137.9,42.4613304]
[1642458186705,13.09024552,138.03,137.9,42.4613304]
[1642458186904,13.09024552,138.03,137.91,0.25]
[1642458187106,12.83024552,138.03,137.94,10.8705]
[1642458187304,12.83024552,138.03,137.95,0.25]
[1642458187505,8.7,138.03,137.95,0.25]
[1642458187705,4.13024552,138.05,137.95,0.25]
[1642458188305,4.13024552,138.05,137.95,49.83201732]
[1642458188505,4.13024552,138.05,137.95,123.87874772]
[1642458188708,35.54325308,138.07,137.97,10.8675]
[1642458188908,35.80325308,138.07,137.98,43.20312609]
[1642458189205,11.1264,138.07,137.98,43.20312609]
[1642458189405,0.25,138.06,137.98,43.46312609]
[1642458189906,0.25,138.06,138.0,10.8662]
[1642458191324,10.8664,138.07,138.01,0.25]
[1642458191512,10.8664,138.07,138.01,46.38046064]
[1642458191913,16.8664,138.07,138.01,46.38046064]
[1642458193114,17.1264,138.07,138.01,0.25]
[1642458195016,11.1264,138.07,138.01,0.25]
[1642458202953,17.1264,138.07,138.0,10.8662]
[1642458203552,11.1264,138.07,138.0,10.8662]
[1642458204357,0.26,138.07,138.01,11.1151]
[1642458204555,0.26,138.07,138.01,10.8651]
[1642458204755,17.1253,138.08,138.01,10.8651]
[1642458207158,17.1253,138.08,138.0,10.866]
[1642458207358,17.1253,138.08,138.01,0.25]
[1642458208060,16.8653,138.08,138.01,43.9538997]
[1642458208859,16.8653,138.08,138.01,54.8191997]
[1642458209061,10.8653,138.08,138.01,54.8191997]
[1642458209262,0.26,138.08,138.02,0.25]
[1642458209473,4.13308681,138.09,138.02,0.25]
[1642458209671,4.13308681,138.1,138.02,0.25]
[1642458210270,4.13308681,138.1,138.02,11.1141]
[1642458210672,4.13308681,138.1,138.02,11.3741]
[1642458210872,19.12904414,138.11,138.02,42.1247]
[1642458211875,11.1234,138.11,138.02,42.1247]
[1642458212876,0.25,138.1,138.02,42.1247]
[1642458214577,0.26,138.11,138.02,42.1247]
[1642458214781,0.25,138.11,138.02,42.1247]
[1642458214980,38.42081748,138.12,138.02,42.1247]
[1642458215177,0.25,138.11,138.02,42.1247]
[1642458215778,0.25,138.11,138.02,41.8747]
[1642458217078,0.25,138.11,138.04,10.8623]
[1642458218079,38.16091748,138.12,138.05,0.25]
[1642458218280,27.29871748,138.12,138.05,11.112]
[1642458218682,4.13308681,138.12,138.05,11.372]
[1642458218983,4.13308681,138.12,138.05,17.372]
[1642458219184,4.13308681,138.12,138.05,42.1008]
[1642458219394,4.39308681,138.12,138.05,42.1008]
[1642458219585,0.26,138.12,138.05,42.1008]
[1642458219785,13.09308681,138.14,138.05,42.1008]
[1642458220485,8.96,138.14,138.05,42.1008]
[1642458223287,0.25,138.13,138.05,42.1008]
[1642458223488,8.96,138.14,138.05,42.1008]
[1642458224688,19.8206,138.14,138.05,42.1008]
[1642458226993,19.8206,138.14,138.05,41.8508]
[1642458228320,19.8206,138.14,138.06,0.25]
[1642458228517,19.8206,138.14,138.06,11.1109]
[1642458228717,19.8206,138.14,138.06,11.3709]
[1642458229217,25.8206,138.14,138.06,0.51]
[1642458229519,25.8206,138.14,138.05,24.7288]
[1642458229721,11.1117,138.13,138.05,35.5905]
[1642458230118,11.3717,138.13,138.05,24.7288]
[1642458230718,7.02776233,138.12,138.05,24.7288]
[1642458230919,17.88996233,138.12,138.06,0.25]
[1642458231219,11.1222,138.12,138.06,0.25]
[1642458232020,0.26,138.12,138.06,0.25]
[1642458232220,0.26,138.12,138.06,44.06533818]
[1642458232418,11.1214,138.13,138.06,44.06533818]
[1642458232619,11.1214,138.13,138.05,0.26]
[1642458232819,11.1214,138.13,138.02,6.0]
[1642458232820,27.56459958,138.13,138.02,6.0]
[1642458233018,27.56459958,138.13,138.01,24.8323]
[1642458233219,72.42,138.12,138.01,24.8323]
[1642458233420,72.42,138.1,138.0,3.8724268]
[1642458233719,19.99873641,138.06,137.99,3.8724268]
[1642458234119,20.25873641,138.06,137.99,3.8724268]
[1642458234719,10.8683,138.05,137.99,3.8724268]
[1642458234921,10.8683,138.05,138.0,0.25]
[1642458235120,11.1283,138.05,137.99,0.25]
[1642458235321,11.1283,138.05,137.98,23.7244]
[1642458235727,11.1283,138.05,137.98,23.4644]
[1642458236928,11.1283,138.05,137.97,48.45905868]
[1642458237131,11.1283,138.05,137.97,48.70905868]
[1642458237428,11.1283,138.05,137.97,48.96905868]
[1642458237627,17.1283,138.05,137.97,48.96905868]
[1642458238629,11.1283,138.05,137.97,48.96905868]
[1642458238830,17.1283,138.05,137.97,65.83695868]
[1642458239229,11.1283,138.05,137.97,65.83695868]
[1642458239431,11.1283,138.05,137.97,90.50495868]
[1642458239836,11.1283,138.05,137.98,2.06653795]
[1642458240233,11.1283,138.05,137.99,0.25]
[1642458240429,10.8683,138.05,137.99,0.25]
[1642458241232,16.8683,138.05,137.99,0.25]
[1642458241436,16.8683,138.05,137.98,0.25]
[1642458241631,10.8711,138.03,137.98,0.25]
[1642458241831,11.1311,138.03,137.98,0.25]
[1642458242031,11.1311,138.03,137.97,2.06653795]
[1642458242231,11.1311,138.03,137.95,2.06653795]
[1642458242434,8.55499986,138.02,137.95,2.06653795]
[1642458242931,8.81499986,138.02,137.95,2.06653795]
[1642458243132,10.81850646,138.02,137.94,29.8873]
[1642458243432,10.81850646,138.02,137.95,0.25]
[1642458243632,10.8723,138.0,137.95,0.25]
[1642458243833,11.1323,138.0,137.95,0.25]
[1642458244233,11.1323,138.0,137.94,29.8873]
[1642458245233,17.1323,138.0,137.94,29.8873]
[1642458245635,2.0035066,138.02,137.94,40.7575]
[1642458245833,2.0035066,138.02,137.94,41.0175]
[1642458246234,2.0035066,138.02,137.94,43.08403795]
[1642458246435,2.0035066,138.02,137.95,42.25859511]
[1642458246868,2.0035066,138.02,137.96,10.8687]
[1642458247037,2.2635066,138.02,137.96,10.8687]
[1642458247239,0.26,138.02,137.97,0.25]
[1642458247439,2.0035066,138.03,137.97,0.25]
[1642458247641,2.2635066,138.03,137.97,0.25]
[1642458247839,2.2635066,138.03,137.97,11.1179]
[1642458248040,0.26,138.03,137.97,11.3779]
[1642458248242,0.26,138.03,137.98,35.29673425]
[1642458248441,2.2635066,138.05,137.98,35.29673425]
[1642458248841,2.2635066,138.05,137.98,46.16383425]
[1642458249540,12.8710066,138.05,137.98,46.16383425]
[1642458249742,2.0035066,138.05,137.99,0.25]
[1642458250545,2.0035066,138.05,137.99,11.1164]
[1642458250746,2.0035066,138.05,138.0,72.42]
[1642458250943,8.7,138.1,138.01,46.41693598]
[1642458250944,2.0035066,138.06,138.01,46.41693598]
[1642458251144,2.0035066,138.06,138.01,46.66693598]
[1642458251350,2.0035066,138.06,138.01,46.92693598]
[1642458251948,2.0035066,138.09,138.01,46.92693598]
[1642458252146,2.0035066,138.09,138.01,71.53613598]
[1642458252348,2.2635066,138.09,138.01,71.53613598]
[1642458252547,13.1280066,138.09,138.01,82.40033598]
[1642458253247,12.8680066,138.09,138.01,82.40033598]
[1642458253448,2.0035066,138.09,138.01,88.40033598]
[1642458254048,2.0035066,138.09,138.01,96.85633598]
[1642458254483,2.0035066,138.1,138.02,72.42]
[1642458254679,2.0035066,138.1,138.04,50.18297138]
[1642458254882,2.0035066,138.1,138.05,0.25]
[1642458255680,2.0035066,138.11,138.05,0.25]
[1642458257183,2.2635066,138.11,138.05,11.1117]
[1642458257382,8.2635066,138.11,138.05,11.3717]
[1642458257582,2.2635066,138.11,138.05,11.3717]
[1642458258988,2.2635066,138.11,138.05,11.1217]
[1642458260597,2.2635066,138.11,138.06,0.25]
[1642458261193,0.26,138.11,138.06,0.25]
[1642458261492,2.2635066,138.12,138.06,0.25]
[1642458263492,2.2635066,138.12,138.06,11.1109]
[1642458263694,2.2635066,138.12,138.06,11.3709]
[1642458263893,2.0035066,138.12,138.06,83.7909]
[1642458264095,2.0035066,138.12,138.06,89.7909]
[1642458264496,2.0035066,138.12,138.06,91.43156347]
[1642458264697,2.04858232,138.13,138.06,91.43156347]
[1642458265896,2.04858232,138.14,138.06,93.49810142]
[1642458266099,2.04858232,138.14,138.07,24.4313]
[1642458266396,2.04858232,138.14,138.11,44.20880122]
[1642458266697,2.04858232,138.14,138.12,6.06439994]
[1642458266902,2.04858232,138.14,138.12,6.57439994]
[1642458267803,2.04858232,138.16,138.12,6.57439994]
[1642458268003,39.10692991,138.22,138.12,6.57439994]
[1642458268004,10.856,138.2,138.12,6.57439994]
[1642458268210,2.2875244,138.27,138.14,72.42]
[1642458268402,2.2875244,138.27,138.15,8.95]
[1642458268603,2.2875244,138.27,138.15,18.44566347]
[1642458268903,2.2875244,138.27,138.17,46.98296123]
[1642458269103,2.2875244,138.27,138.17,91.84836123]
[1642458269302,2.2875244,138.27,138.18,72.67]
[1642458269506,2.2875244,138.27,138.18,92.2748]
[1642458269703,2.2875244,138.27,138.18,98.5348]
[1642458269904,2.2875244,138.27,138.18,100.17546347]
[1642458270104,2.2875244,138.27,138.18,98.5348]
[1642458270308,2.2875244,138.27,138.18,122.8968]
[1642458271707,8.2875244,138.27,138.18,122.8968]
[1642458271910,2.2875244,138.27,138.18,122.8968]
[1642458273629,2.5475244,138.27,138.18,122.8968]
[1642458274030,2.5475244,138.27,138.18,122.6468]
[1642458274730,2.2875244,138.27,138.18,122.6468]
[1642458275329,2.2875244,138.27,138.19,0.25]
[1642458275534,2.2875244,138.27,138.22,44.20769479]
[1642458275932,2.2875244,138.27,138.23,0.25]
[1642458277633,2.2875244,138.27,138.23,11.0976]
[1642458277832,2.2875244,138.27,138.23,11.3576]
[1642458278832,2.2875244,138.27,138.23,11.0976]
[1642458279232,2.2875244,138.27,138.23,11.3576]
[1642458280737,2.2875244,138.27,138.23,17.3576]
[1642458282636,43.30790873,138.32,138.23,17.3576]
[1642458282938,49.56790873,138.32,138.23,40.7408]
[1642458283738,6.26,138.32,138.23,40.7408]
[1642458283942,0.26,138.32,138.23,40.4908]
[1642458284143,4.12663998,138.31,138.23,40.4908]
[1642458284342,10.38663998,138.31,138.23,40.4908]
[1642458284541,4.38663998,138.31,138.23,40.4908]
[1642458284839,4.12663998,138.31,138.23,40.4908]
[1642458285240,4.12663998,138.31,138.26,10.8439]
[1642458285639,4.12663998,138.31,138.27,0.25]
[1642458285840,4.12663998,138.36,138.27,35.70152068]
[1642458286239,4.38663998,138.36,138.27,35.96152068]
[1642458286640,15.23053998,138.36,138.28,10.8442]
[1642458286840,21.23053998,138.36,138.28,10.8442]
[1642458287339,10.38663998,138.36,138.28,11.1042]
[1642458287541,4.12663998,138.36,138.28,11.1042]
[1642458287940,0.25,138.35,138.28,11.1042]
[1642458288239,4.12663998,138.36,138.3,10.8427]
[1642458288840,0.26,138.36,138.3,10.8427]
[1642458289241,8.5475244,138.37,138.3,10.8427]
[1642458289542,42.48880331,138.37,138.3,50.67212148]
[1642458289742,4.12562676,138.35,138.3,50.67212148]
[1642458290147,4.38562676,138.35,138.3,50.67212148]
[1642458290548,4.38562676,138.35,138.3,10.8427]
[1642458291152,0.26,138.35,138.3,10.8427]
[1642458291346,4.38562676,138.36,138.3,10.8427]
[1642458292046,0.26,138.36,138.3,10.8427]
[1642458292245,0.25,138.36,138.3,10.8427]
[1642458292445,2.5475244,138.37,138.3,10.8427]
[1642458292746,4.12561668,138.35,138.3,16.8427]
[1642458292947,4.12561668,138.35,138.3,17.1027]
[1642458293149,4.12561668,138.35,138.32,10.8417]
[1642458293546,4.12561668,138.35,138.31,0.25]
[1642458293848,39.94502451,138.36,138.31,0.25]
[1642458294045,4.12561668,138.36,138.31,0.25]
[1642458294245,4.12561668,138.36,138.31,10.8429]
[1642458294648,4.12561668,138.36,138.32,0.25]
[1642458294848,2.2875244,138.37,138.32,0.25]
[1642458295048,2.2875244,138.37,138.32,47.05079474]
[1642458295248,2.2875244,138.37,138.32,47.31079474]
[1642458296049,2.2875244,138.37,138.33,10.8403]
[1642458296250,2.2875244,138.37,138.33,11.1003]
[1642458296951,2.2875244,138.37,138.33,10.8403]
[1642458297150,2.5475244,138.37,138.33,10.8403]
[1642458298552,2.2875244,138.37,138.34,0.25]
[1642458298753,2.2875244,138.37,138.35,6.06439994]
[1642458299584,2.2875244,138.37,138.35,54.4192238]
[1642458300784,2.2875244,138.37,138.35,65.2579238]
[1642458302188,2.2875244,138.37,138.35,54.4192238]
[1642458303190,2.2875244,138.37,138.35,6.06439994]
[1642458303390,0.25,138.36,138.19,10.9318]
[1642458303590,10.8935244,138.37,138.25,24.2778]
[1642458303789,2.5475244,138.37,138.25,30.2778]
[1642458304196,2.5475244,138.37,138.26,46.46839367]
[1642458304389,2.5475244,138.37,138.26,52.46839367]
[1642458304591,10.8439,138.36,138.27,10.8439]
[1642458304796,11.1039,138.36,138.27,34.4939]
[1642458305292,11.1039,138.36,138.28,0.25]
[1642458306193,11.1039,138.36,138.29,38.45984875]
[1642458306392,11.1039,138.36,138.3,0.25]
[1642458306593,17.1039,138.36,138.3,0.25]
[1642458306798,14.97010124,138.35,138.29,38.45984875]
[1642458307296,15.23010124,138.35,138.29,38.45984875]
[1642458307793,0.26,138.35,138.29,38.45984875]
[1642458307996,13.3910244,138.37,138.29,38.71984875]
[1642458308197,13.3910244,138.37,138.3,0.25]
[1642458308396,19.3910244,138.37,138.3,0.25]
[1642458308596,4.12533809,138.36,138.3,0.25]
[1642458308800,49.07624773,138.36,138.3,0.25]
[1642458308998,49.07624773,138.36,138.25,0.25]
[1642458309200,10.8462,138.35,138.25,0.25]
[1642458309401,11.1062,138.35,138.25,0.25]
[1642458309597,15.23153809,138.35,138.25,0.25]
[1642458309798,15.23153809,138.35,138.25,56.93458023]
[1642458309998,15.23153809,138.35,138.25,63.19458023]
[1642458310198,15.23153809,138.35,138.26,23.4319]
[1642458310399,11.1062,138.35,138.27,0.25]
[1642458310628,11.1062,138.35,138.26,23.4319]
[1642458310799,11.1062,138.35,138.25,6.0]
[1642458311000,11.1062,138.35,138.24,6.0]
[1642458311198,11.1062,138.35,138.21,10.849]
[1642458311401,34.5647,138.35,138.22,24.9219]
[1642458311699,34.5647,138.35,138.23,40.81352485]
[1642458311904,34.5647,138.35,138.24,0.25]
[1642458312499,34.190253,138.35,138.24,0.25]
[1642458312700,10.85,138.31,138.24,0.25]